Cogmind - Beta 11.1 @@@ ROGUE MODE // 2022.09.10 @ 17:32:10 Player: ILikeMonsters1890 Result: Destroyed by D-63 Destroyer with Heavy Rocket Launcher Performance ------------- Evolutions (5) 2500 Regions Visited (9) 1800 Robots Destroyed (79) 395 Value Destroyed (2283) 2283 Prototype IDs (21) 420 Alien Tech Used (0) 0 Bonus (1000) 1000 TOTAL SCORE: 8398 Bonus ------- Met Warlord at Base 500 MAIN.C Attacked Warlord 500 Cogmind --------- Core Integrity 0/1000 Matter 290/300 Energy 51/100 System Corruption 21% Temperature Cool (0) Movement Core (350) Ox6 Location -5/Warlord Parts ------- > --- POWER (2) -------- (None) > --- PROPULSION (6) --- (None) > --- UTILITY (6) ------ Large Storage Unit Improved Signal Interpreter Weapon Cycler > --- WEAPON (3) ------- (None) > --- INVENTORY (15) --- Improved Heat Sink Medium Storage Unit Improved Thermal Shield Hypervelocity Gauss Rifle Hypervelocity Gauss Rifle Hypervelocity Gauss Rifle Peak State ------------ > --- POWER ------------ Enhanced Nuclear Core Light Angular Momentum Engine > --- PROPULSION ------- Armored Huge Wheel Armored Huge Wheel Armored Huge Wheel > --- UTILITY ---------- Improved Cooling System Large Storage Unit Advanced Sensor Array Improved Signal Interpreter Improved Targeting Computer Weapon Cycler > --- WEAPON ----------- Heavy Machine Gun Heavy Machine Gun Vortex Lance > --- INVENTORY -------- Micro Fission Core Armored Medium Treads Armored Medium Treads Wheel Armored Huge Wheel Field Propulsion Drive Improved Heat Sink Medium Storage Unit Point Defense System Hypervelocity Gauss Rifle Hypervelocity Gauss Rifle Hypervelocity Gauss Rifle Heavy Machine Gun Heavy Machine Gun [Rating: 78] Favorites ----------- Power Light Nuclear Core Engine Light Angular Momentum Engine Power Core Light Nuclear Core Propulsion Armored Huge Wheel Treads Light Treads Leg Aluminum Leg Wheel Armored Huge Wheel Hover Unit Gravmag System Flight Unit Flight Unit Utility Improved Signal Interpreter Device Advanced Sensor Array Storage Small Storage Unit Processor Improved Signal Interpreter Hackware Hacking Suite Protection Heavy Armor Plating Weapon Heavy Machine Gun Energy Gun Gatling Laser Energy Cannon Ion Cannon Ballistic Gun Heavy Machine Gun Ballistic Cannon Advanced Assault Cannon Launcher Rocket Launcher Piercing Weapon Vortex Lance Build | -11 -10 -10 -9 -8 -7 -6 -5 -5 -5 ------- Run | Scr Mat Min Mat Mat Fac Fac Fac Upp War Slots Evolved 10 | . . . 2 2 2 2 2 . . Power 1 | . . . . 1 . . . . . Propulsion 4 | . . . 1 1 . . 2 . . Utility 4 | . . . 1 . 1 2 . . . Weapon 1 | . . . . . 1 . . . . Parts Attached 105 | 7 2 5 14 16 20 16 13 . 12 Power 20 | 1 1 1 2 4 3 2 5 . 1 Engine 10 | 1 1 1 2 3 1 . 1 . . Core 10 | . . . . 1 2 2 4 . 1 Reactor . | . . . . . . . . . . Propulsion 31 | 2 1 . 5 6 6 5 1 . 5 Treads 3 | . . . . . 1 . . . 2 Leg 4 | . . . . 2 2 . . . . Wheel 13 | 2 1 . 2 . 2 3 1 . 2 Hover 2 | . . . . . 1 1 . . . Flight 9 | . . . 3 4 . 1 . . 1 Utility 28 | 2 . 1 2 4 6 5 7 . 1 Device 13 | 1 . 1 2 . 2 3 3 . 1 Storage 6 | 1 . . . . 2 1 2 . . Processor 3 | . . . . 2 . . 1 . . Hackware 1 | . . . . . 1 . . . . Protection 5 | . . . . 2 1 1 1 . . Artifact . | . . . . . . . . . . Weapon 26 | 2 . 3 5 2 5 4 . . 5 Energy Gun 3 | . . . . . 1 1 . . 1 Energy Cannon 1 | . . . . . 1 . . . . Ballistic Gun 17 | 2 . 2 5 1 1 3 . . 3 Ballistic Cannon 2 | . . . . . 2 . . . . Launcher 2 | . . 1 . 1 . . . . . Special Weapon . | . . . . . . . . . . Impact Weapon . | . . . . . . . . . . Slashing Weapon . | . . . . . . . . . . Piercing Weapon 1 | . . . . . . . . . 1 Special Melee Weapon . | . . . . . . . . . . Unidentified Prototypes 5 | . . . . . 1 1 1 . 2 Parts Lost 55 | . 2 1 5 21 1 2 4 . 19 Power 12 | . 1 . 1 4 . 1 2 . 3 Propulsion 19 | . 1 . 1 9 . . . . 8 Utility 12 | . . . 1 4 1 . 2 . 4 Weapon 12 | . . 1 2 4 . 1 . . 4 Highest Loss Streak 19 | . 1 1 2 14 1 1 2 . 19 To Critical Strikes . | . . . . . . . . . . Average Slot Usage (%) 82 | . 99 99 94 81 71 79 79 . 79 Engine 4 | . 13 14 10 10 . . 2 . 4 Core 7 | . . . . 4 13 12 8 . 4 Leg 2 | . . . . 1 12 . . . . Wheel 13 | . 28 28 19 . 1 13 17 . 16 Flight 3 | . . . 13 23 . . . . . Device 13 | . 14 14 20 9 6 13 15 . 16 Storage 6 | . 14 14 11 9 . 6 5 . 5 Processor 5 | . . . . 7 7 6 7 . 10 Protection 2 | . . . . . 4 6 3 . . Ballistic Gun 14 | . 28 27 19 14 3 7 17 . 16 Ballistic Cannon 2 | . . . . . 7 10 . . . Naked Turns . | . . . . . . . . . . Heaviest Build 57 | 12 12 13 17 18 45 57 56 56 56 Greatest Support 84 | 20 20 20 30 20 56 56 84 84 84 Greatest Overweight (x) 6 | . . . . 4 6 1 . . 6 Average Overweight (x) . | . . . . . 1 . . . . Largest Inventory Capacity 15 | 8 8 8 8 8 8 10 15 15 15 Average Capacity 9 | 7 8 8 8 7 5 9 11 15 15 Most Carried 15 | 8 8 8 8 7 8 10 15 15 15 Average Carried 8 | 5 7 7 7 3 3 8 10 15 14 Final Capacity 15 | 8 8 8 8 5 8 10 15 15 15 Final Carried 15 | 8 8 8 7 . 8 10 15 15 6 Class Distribution -------------------- 37% | Skirmisher 26% | Mutant 14% | Scavenger-Mutant 11% | Scavenger-Tank Dominant Class ---------------- Mutant | -10/Materials Mutant | -10/Mines Scavenger-Mutant | -9/Materials Scavenger-Mutant | -8/Materials Mutant | -7/Factory Scavenger-Tank | -6/Factory Skirmisher | -5/Factory Skirmisher | -5/Upper Caves Skirmisher | -5/Warlord Resources | -11 -10 -10 -9 -8 -7 -6 -5 -5 -5 ----------- Run | Scr Mat Min Mat Mat Fac Fac Fac Upp War Matter Collected 2788 | 333 115 85 351 157 385 585 737 . 40 Remotely . | . . . . . . . . . . Salvage Created 2952 | 154 121 214 537 265 444 533 684 . . Parts 151 | 11 11 11 33 12 17 20 36 . . Haulers Intercepted 5 | . 1 . 2 . . 2 . . . Recyclers Shooed 5 | . . . 2 . . 2 1 . . Parts Field Recycled . | . . . . . . . . . . Retrieved Matter . | . . . . . . . . . . Parts Self-Destructed . | . . . . . . . . . . Prevented . | . . . . . . . . . . Kills | -11 -10 -10 -9 -8 -7 -6 -5 -5 -5 ------- Run | Scr Mat Min Mat Mat Fac Fac Fac Upp War Combat Hostiles Destroyed 53 | . 4 5 10 4 7 7 16 . . Guns 41 | . 4 5 10 3 1 2 16 . . Cannons 11 | . . . . . 6 5 . . . AOE 1 | . . . . 1 . . . . . Classes Destroyed 13 | 2 3 1 3 . 2 2 . . . Worker 5 | . . . 2 1 . . 2 . . Builder 1 | . 1 . . . . . . . . Tunneler 5 | 5 . . . . . . . . . Hauler 5 | . 1 . 2 . . 2 . . . Recycler 7 | 1 . . 1 1 3 1 . . . Operator 1 | . . . . . . 1 . . . Watcher 2 | . . . 1 . . 1 . . . Swarmer 18 | . 4 . 6 . . . 8 . . Grunt 21 | . . 5 2 3 4 4 3 . . Brawler 1 | . . . . . . 1 . . . Sentry 5 | . . . 2 1 1 . 1 . . Hunter 3 | . . . . . 1 1 1 . . Programmer 5 | . . . . . 1 1 3 . . Best Kill Streak 5 | 2 2 2 5 3 2 3 4 . . Combat Bots Only 4 | . 2 2 3 2 2 3 4 . . Max Kills in Single Turn 2 | 1 2 2 2 2 1 1 2 . . Gunslinging 1 | . . 1 1 . . . 1 . . Exploded 1 | . . . . 1 . . . . . Melee . | . . . . . . . . . . Uniques/NPCs Destroyed . | . . . . . . . . . . Combat | -11 -10 -10 -9 -8 -7 -6 -5 -5 -5 -------- Run | Scr Mat Min Mat Mat Fac Fac Fac Upp War Damage Taken 8050 | . 261 191 489 1496 483 581 1217 . 3332 Core 1790 | . 50 21 122 425 100 20 133 . 919 Absorbed by Shields . | . . . . . . . . . . Core Remaining (%) 74 | 100 . 71 69 22 85 97 . . . Volleys Fired 275 | 24 18 16 65 49 24 34 45 . . Largest 3 | 2 2 2 2 2 3 3 3 . . Hottest 165 | 40 40 40 43 40 156 165 90 . . Shots Fired 594 | 48 36 30 111 88 44 102 135 . . Gun 513 | 48 36 29 111 86 12 56 135 . . Cannon 78 | . . . . . 32 46 . . . Launcher 3 | . . 1 . 2 . . . . . Special . | . . . . . . . . . . Kinetic 577 | 48 36 29 111 86 31 101 135 . . Thermal 14 | . . . . . 13 1 . . . Explosive 3 | . . 1 . 2 . . . . . Electromagnetic . | . . . . . . . . . . Robot Hit Streak 14 | 5 7 11 14 12 9 5 10 . . Robot Miss Streak 8 | 2 3 1 5 3 4 8 4 . . Penetration Max . | . . . . . . . . . . Secondary Targets 8 | . 1 1 2 . . . 4 . . Max Gunslinging Chain 2 | . 1 1 1 . . . 2 . . Shots Hit Robots 385 | 31 23 22 72 62 35 67 73 . . Core Hits 165 | 11 8 11 27 23 18 37 30 . . Critical Kills . | . . . . . . . . . . Critical Parts Destroyed 1 | . . . . . . . 1 . . Critical Strikes 5 | . . . 1 . 2 1 1 . . Destroy 2 | . . . 1 . . . 1 . . Blast 3 | . . . . . 2 1 . . . Melee Attacks . | . . . . . . . . . . Impact . | . . . . . . . . . . Slashing . | . . . . . . . . . . Piercing . | . . . . . . . . . . Sneak Attacks . | . . . . . . . . . . Combat Hostiles . | . . . . . . . . . . Follow-up Attacks . | . . . . . . . . . . Damage Inflicted 6416 | 324 238 186 763 725 768 1647 1765 . . Guns 4589 | 324 238 184 751 503 127 704 1758 . . Cannons 1415 | . . . . . 625 790 . . . Explosions 330 | . . . . 178 . 152 . . . Melee . | . . . . . . . . . . Ramming 82 | . . 2 12 44 16 1 7 . . Kinetic 5810 | 324 238 184 751 503 580 1472 1758 . . Thermal 194 | . . . . . 172 22 . . . Explosive 330 | . . . . 178 . 152 . . . Electromagnetic . | . . . . . . . . . . Impact . | . . . . . . . . . . Slashing . | . . . . . . . . . . Piercing . | . . . . . . . . . . Highest Corruption 21 | . . . . . . . . . 21 Average Corruption 12 | . . . . . . . . . 12 Corruption Purged . | . . . . . . . . . . Corruption Blocked . | . . . . . . . . . . Effects 2 | . . . . . . . . . 2 Message Errors 1 | . . . . . . . . . 1 Energy Discharges 1 | . . . . . . . . . 1 Overload Shots . | . . . . . . . . . . Overflow Damage 28 | . . . . 14 14 . . . . Projectiles 14 | . . . . . 14 . . . . Explosions 14 | . . . . 14 . . . . . Melee . | . . . . . . . . . . Knockbacks 9 | . . . . 1 4 4 . . . Impact 1 | . . . . 1 . . . . . Kinetic 8 | . . . . . 4 4 . . . Secondary . | . . . . . . . . . . Self-Inflicted Damage 435 | . . 40 6 97 . 114 178 . . Shots 6 | . . 1 . 2 . 1 2 . . Rammed 4 | . . 1 1 . . 1 1 . . Targets Rammed 23 | . . 1 1 15 4 1 1 . . Kicked 19 | . . . . 15 4 . . . . Crushed . | . . . . . . . . . . Highest Temperature 361 | . . 12 6 82 361 176 7 . . Average Temperature 69 | . . 7 4 21 132 45 4 . . Received Heat Transfer 1203 | . . 84 90 558 192 189 81 . 9 Effects 2 | . . . . . 2 . . . . Shutdowns 2 | . . . . . 2 . . . . Siege Activations . | . . . . . . . . . . Robots Corrupted . | . . . . . . . . . . Combat Hostiles . | . . . . . . . . . . Parts Fried . | . . . . . . . . . . Impact Corruptions 1 | . . . . 1 . . . . . Robots Melted . | . . . . . . . . . . Combat Hostiles . | . . . . . . . . . . Parts Melted . | . . . . . . . . . . Heat Transferred 347 | . . . . . 310 37 . . . Parts Sabotaged . | . . . . . . . . . . Parts Stolen . | . . . . . . . . . . Parts Stripped . | . . . . . . . . . . Power Chain Reactions . | . . . . . . . . . . Missiles Intercepted 2 | . . . . . . . . . 2 Alert | -11 -10 -10 -9 -8 -7 -6 -5 -5 -5 ------- Run | Scr Mat Min Mat Mat Fac Fac Fac Upp War Peak Influence 399 | 30 151 83 378 181 95 252 399 . . Initial 127 | . 19 58 31 127 . 39 56 . . Average 113 | 14 93 50 166 134 59 135 175 . . Maximum Alert Level 1 | . . . 1 . . 1 1 . . Low Security (%) 80 | 100 100 100 51 100 100 65 61 . . Level 1 19 | . . . 48 . . 34 38 . . Level 2 . | . . . . . . . . . . Level 3 . | . . . . . . . . . . Level 4 . | . . . . . . . . . . Level 5 . | . . . . . . . . . . High Security . | . . . . . . . . . . Max Security . | . . . . . . . . . . Squads Dispatched 12 | . . . 1 2 4 3 2 . . Investigation 1 | . . . . . . . 1 . . Extermination 3 | . . . . . 1 1 1 . . Reinforcement 7 | . . . 1 1 3 2 . . . Assault . | . . . . . . . . . . Garrison 1 | . . . . 1 . . . . . Intercept . | . . . . . . . . . . Searches Triggered . | . . . . . . . . . . Construction Impeded 1 | . . . . . . 1 . . . Haulers Reinforced 1 | . . . . . 1 . . . . Active Scanning Responses . | . . . . . . . . . . Cargo Convoy Interrupts . | . . . . . . . . . . Stealth | -11 -10 -10 -9 -8 -7 -6 -5 -5 -5 --------- Run | Scr Mat Min Mat Mat Fac Fac Fac Upp War Distress Signals 5 | . 2 . 3 . . . . . . Communications Jammed . | . . . . . . . . . . Distress Signals . | . . . . . . . . . . Times Spotted 124 | . 8 6 26 15 11 11 31 . 16 Peak Tracking Total 11 | . 4 2 5 7 2 4 6 . 11 Tactical Retreats 3 | . 1 . 1 . . . 1 . . Traps | -11 -10 -10 -9 -8 -7 -6 -5 -5 -5 ------- Run | Scr Mat Min Mat Mat Fac Fac Fac Upp War Traps Triggered 3 | . . . . . 3 . . . . Indirectly . | . . . . . . . . . . Trap Hack Attempts . | . . . . . . . . . . Triggered . | . . . . . . . . . . Disarmed . | . . . . . . . . . . Reprogrammed . | . . . . . . . . . . Reused . | . . . . . . . . . . Traps Extracted . | . . . . . . . . . . Installed . | . . . . . . . . . . Triggered 14 | . . . . . . . . . 14 Machines | -11 -10 -10 -9 -8 -7 -6 -5 -5 -5 ---------- Run | Scr Mat Min Mat Mat Fac Fac Fac Upp War Machines Disabled 4 | . . . . . . 2 2 . . Max in Single Turn 2 | . . . . . . 2 2 . . Garrison Access 1 | . . . . . . . 1 . . Machines Sabotaged . | . . . . . . . . . . Garrisons Compromised . | . . . . . . . . . . Overloaded Fab Kills . | . . . . . . . . . . Hacking | -11 -10 -10 -9 -8 -7 -6 -5 -5 -5 --------- Run | Scr Mat Min Mat Mat Fac Fac Fac Upp War Machines Accessed 23 | . 2 . 4 . 5 3 4 . 5 Terminals 8 | . 1 . 3 . 1 2 1 . . Fabricators 2 | . . . . . 2 . . . . Repair Stations . | . . . . . . . . . . Recycling Units 5 | . 1 . 1 . 1 1 1 . . Scanalyzers 1 | . . . . . . . 1 . . Garrison Access 2 | . . . . . 1 . 1 . . Total Hacks 52 | . 4 . 8 . 8 7 10 . 15 Successful 30 | . 3 . 5 . 3 . 4 . 15 Failed 22 | . 1 . 3 . 5 7 6 . . Catastrophic 1 | . . . . . . 1 . . . Database Lockouts . | . . . . . . . . . . Manual 8 | . 1 . 3 . 2 2 . . . Terminals 18 | . 2 . 7 . 2 4 3 . . Fabricators 3 | . . . . . 3 . . . . Repair Stations . | . . . . . . . . . . Recycling Units 9 | . 2 . 1 . 1 3 2 . . Scanalyzers 2 | . . . . . . . 2 . . Garrison Access 5 | . . . . . 2 . 3 . . Terminal Hacks 19 | . 1 . 2 . 1 . . . 15 Record 7 | . . . . . . . . . 7 Prototype ID Bank 9 | . 1 . 1 . . . . . 7 Open Door 1 | . . . . . . . . . 1 Open DSF 1 | . . . . . 1 . . . . Zone Layout 1 | . . . 1 . . . . . . Fabricator Hacks 1 | . . . . . 1 . . . . Build 1 | . . . . . 1 . . . . Repair Station Hacks . | . . . . . . . . . . Recycling Unit Hacks 4 | . 1 . 1 . 1 . 1 . . Retrieve Components 4 | . 1 . 1 . 1 . 1 . . Scanalyzer 2 | . . . . . . . 2 . . Insert Component 1 | . . . . . . . 1 . . Analyze 1 | . . . . . . . 1 . . Garrison Access Hacks 1 | . . . . . . . 1 . . Seal Access 1 | . . . . . . . 1 . . Unauthorized Hacks 3 | . 1 . 2 . . . . . . Terminals 3 | . 1 . 2 . . . . . . Botnet 3 | . 1 . 2 . . . . . . Fabricators . | . . . . . . . . . . Repair Stations . | . . . . . . . . . . Recycling Units . | . . . . . . . . . . Scanalyzers . | . . . . . . . . . . Garrison Access . | . . . . . . . . . . Data Cores Recovered 1 | . . . . . . 1 . . . Used . | . . . . . . . . . . Hacking Detections 16 | . 2 . 4 . 4 3 3 . . Full Trace Events 1 | . . . . . . . 1 . . Feedback Events . | . . . . . . . . . . Feedback Blocked . | . . . . . . . . . . Robot Schematics Acquired . | . . . . . . . . . . Robots Built . | . . . . . . . . . . Authchips . | . . . . . . . . . . Time . | . . . . . . . . . . Total Robot Build Rating . | . . . . . . . . . . Part Schematics Acquired 1 | . . . . . . . 1 . . Parts Built 1 | . . . . . 1 . . . . Authchips . | . . . . . . . . . . Time 42 | . . . . . 42 . . . . Total Part Build Rating 4 | . . . . . 4 . . . . Parts Repaired . | . . . . . . . . . . Time . | . . . . . . . . . . Parts Recycled . | . . . . . . . . . . Recycled Matter . | . . . . . . . . . . Retrieved Matter . | . . . . . . . . . . Retrieved Components 24 | . 2 . 6 . 7 . 9 . . Parts Scanalyzed 1 | . . . . . . . 1 . . Part Schematics Acquired 1 | . . . . . . . 1 . . Parts Damaged . | . . . . . . . . . . Bothacking | -11 -10 -10 -9 -8 -7 -6 -5 -5 -5 ------------ Run | Scr Mat Min Mat Mat Fac Fac Fac Upp War Used RIF Installer . | . . . . . . . . . . Robots Hacked . | . . . . . . . . . . Non-combat . | . . . . . . . . . . Combat . | . . . . . . . . . . Robot Hacks Applied . | . . . . . . . . . . Relay Couplers Released . | . . . . . . . . . . Fabnet Peak Effective % . | . . . . . . . . . . Robots Rewired . | . . . . . . . . . . Allies Hacked . | . . . . . . . . . . Hacks Repelled . | . . . . . . . . . . Allies | -11 -10 -10 -9 -8 -7 -6 -5 -5 -5 -------- Run | Scr Mat Min Mat Mat Fac Fac Fac Upp War Total Allies . | . . . . . . . . . . Largest Group . | . . . . . . . . . . Highest-Rated Group . | . . . . . . . . . . Highest-Rated Ally . | . . . . . . . . . . Total Orders . | . . . . . . . . . . Ally Attacks . | . . . . . . . . . . Total Damage . | . . . . . . . . . . Kills . | . . . . . . . . . . Allies Corrupted . | . . . . . . . . . . Allies Melted 1 | . . . . . . . . . 1 Intel | -11 -10 -10 -9 -8 -7 -6 -5 -5 -5 ------- Run | Scr Mat Min Mat Mat Fac Fac Fac Upp War Robot Analysis Total . | . . . . . . . . . . Derelict Logs Recovered . | . . . . . . . . . . Drone Launches . | . . . . . . . . . . Drone Recoveries . | . . . . . . . . . . Exploration | -11 -10 -10 -9 -8 -7 -6 -5 -5 -5 ------------- Run | Scr Mat Min Mat Mat Fac Fac Fac Upp War Turns Passed 5932 | 227 173 617 517 443 1093 736 1156 5 965 Spaces Moved 4202 | 175 144 400 507 225 465 543 813 6 924 Core 71 | 14 . . . 24 31 . . . 2 Treads 16 | . . . . . . . . . 16 Legs 390 | . . . . 15 375 . . . . Wheels 3236 | 161 144 400 205 . 59 543 813 6 905 Hover . | . . . . . . . . . . Flight 489 | . . . 302 186 . . . . 1 Fastest Speed 29 | 50 80 80 32 29 100 100 100 100 93 Average Speed 101 | 77 80 80 51 77 201 100 100 100 101 Slowest Speed 350 | 80 80 80 80 280 350 115 100 100 350 Overloaded Moves . | . . . . . . . . . . Propulsion Burnouts . | . . . . . . . . . . Robots Hopped 5 | . . . 5 . . . . . . Cave-ins Triggered . | . . . . . . . . . . Exploration Rate (%) 29 | 6 32 71 35 15 11 14 19 1 94 Regions Visited 9 Branch Regions 3 Pre-discovered Areas . | . . . . . . . . . . Known Exits Taken 5 | . . . . 1 1 1 1 1 . Unknown Exits Taken 4 | 1 1 1 1 . . . . . . Scrap Searched 1 | . . 1 . . . . . . . Spaces Dug . | . . . . . . . . . . Terrain Destroyed 83 | . . 5 . 14 1 21 42 . . Melee . | . . . . . . . . . . Projectile 10 | . . . . . 1 9 . . . AOE 73 | . . 5 . 14 . 12 42 . . Terrain Rammed . | . . . . . . . . . . Walls Destroyed . | . . . . . . . . . . Machines Disabled . | . . . . . . . . . . Actions | -11 -10 -10 -9 -8 -7 -6 -5 -5 -5 --------- Run | Scr Mat Min Mat Mat Fac Fac Fac Upp War Total 5437 | 224 169 671 662 420 584 668 1084 5 950 Wait 637 | . 2 245 45 107 9 36 185 . 8 Move 4183 | 174 143 399 496 224 464 542 812 5 924 Hop 5 | . . . 5 . . . . . . Pick Up 127 | 17 3 3 20 9 30 22 20 . 3 Fast Attach . | . . . . . . . . . . Attach 78 | 7 2 1 10 15 18 11 6 . 8 Detach 5 | . . . 2 . 2 1 . . . Swap 27 | . . 4 4 1 2 5 7 . 4 Drop 62 | 2 1 2 14 . 16 16 8 . 3 Fire 275 | 24 18 16 65 49 24 34 45 . . Melee . | . . . . . . . . . . Ram 4 | . . 1 1 . . 1 1 . . Kick 19 | . . . . 15 4 . . . . Crush . | . . . . . . . . . . Escape Stasis 15 | . . . . . 15 . . . . Rewire . | . . . . . . . . . . Trap . | . . . . . . . . . . Miscellaneous . | . . . . . . . . . . Route ------- -11/Scrapyard -10/Materials -10/Mines -9/Materials -8/Materials -7/Factory (discovered 2 exits: *Fac x2) -6/Factory -5/Factory -5/Upper Caves -5/Warlord (discovered 1 exit: *Pro) History --------- Turn | Location | Event 8 | -11/Scrapyard | Discovered new exit (range 15) 228 | -11/Scrapyard | Entered Materials 305 | -10/Materials | Build established: Mutant 383 | -10/Materials | Discovered new exit (range 12) 401 | -10/Materials | Entered Mines 461 | -10/Mines | Received a Rocket Launcher from a helpful Derelict 548 | -10/Mines | Excavation squad dispatched 548 | -10/Mines | A large section of the Mines collapsed 798 | -10/Mines | Excavation squad dispatched 1008 | -10/Mines | Discovered new exit (range 8) 1018 | -10/Mines | Entered Materials 1018 | -9/Materials | Evolved 2 slots: Propulsion x1, Utility x1 1243 | -9/Materials | Build established: Scavenger-Mutant 1529 | -9/Materials | Discovered new exit (range 16) 1535 | -9/Materials | Entered another Materials area 1535 | -8/Materials | Evolved 2 slots: Power x1, Propulsion x1 1674 | -8/Materials | Lost 7 parts (2p4n1u) 1697 | -8/Materials | Garrison activated, responded to threat 1959 | -8/Materials | Core integrity fell below 50% 1967 | -8/Materials | Discovered new exit (range 16) 1976 | -8/Materials | Identified exit to Factory 1978 | -8/Materials | Entered Factory 1978 | -7/Factory | Evolved 2 slots: Utility x1, Weapon x1 2001 | -7/Factory | Lost 14 parts (2p5n3u4w) 2148 | -7/Factory | Build established: Mutant 2166 | -7/Factory | Discovered new exit (range 9) 2198 | -7/Factory | Identified exit to Factory 2976 | -7/Factory | Fabricated Armor Integrity Analyzer (x1) 3054 | -7/Factory | Discovered exit to Factory (range 16) 3071 | -7/Factory | Entered another Factory area 3071 | -6/Factory | Evolved 2 slots: Utility x2 3432 | -6/Factory | Build established: Scavenger-Tank 3799 | -6/Factory | Discovered new exit (range 9) 3806 | -6/Factory | Identified exit to Factory 3807 | -6/Factory | Entered another Factory area 3807 | -5/Factory | Evolved 2 slots: Propulsion x2 3961 | -5/Factory | Build established: Skirmisher 4902 | -5/Factory | Discovered new exit (range 6) 4906 | -5/Factory | Identified exit to Upper Caves 4963 | -5/Factory | Entered Upper Caves 4966 | -5/Upper Caves | A Derelict revealed a hidden shortcut to "reach the base" 4967 | -5/Upper Caves | Identified exit to Warlord 4968 | -5/Upper Caves | Entered Warlord 5034 | -5/Warlord | Discovered new exit (range 9) 5041 | -5/Warlord | Identified exit to Proximity Caves 5392 | -5/Warlord | Met Warlord 5417 | -5/Warlord | Warlord's base attacked by MAIN.C 5735 | -5/Warlord | Found Prototype Piercing Weapon 5736 | -5/Warlord | Identified Vortex Lance 5743 | -5/Warlord | Found Prototype Energy Gun 5744 | -5/Warlord | Identified Vortex Rail 5767 | -5/Warlord | Warlord forces counterattacked 5801 | -5/Warlord | Spotted Striker 5808 | -5/Warlord | Spotted Executioner 5866 | -5/Warlord | Spotted Striker 5881 | -5/Warlord | P-70 Sage assimilated allied 67-IF2(g) 5893 | -5/Warlord | System corruption reached 10% 5914 | -5/Warlord | Core integrity fell below 50% 5928 | -5/Warlord | Core integrity fell below 20% 5933 | -5/Warlord | Destroyed by D-63 Destroyer with Heavy Rocket Launcher Last Messages --------------- 05909_ Point Defense System destroyed. 05909_ P-80 Master resets D-63 Destroyer, system corruption cleaned. 05910_ P-70 Sage hacks F9-VP3(M), rebooting. 05912_ Hvy. Machine Gun destroyed. 05912_ Chain reaction triggered in Angular Momentum Engine. 05912_ Blast Doors breached. 05916_ The unstable cave ceiling collapses. 05916_ F9-VP3(M) destroyed. 05917_ The unstable cave ceiling collapses. 05917_ ANNOUNCEMENT: Detected 1 Demolisher squad, 1 Programmer squad, 1 Hunter squad, 1 Melee squad, with prototype support. 05917_ P-80 Master resets D-63 Destroyer, system corruption cleaned. 05918_ P-70 Sage resets P-80 Master, system corruption cleaned. 05918_ Arm. Medium Treads destroyed. 05925_ System corrupted: Energy discharge (-18). 05926_ Arm. Medium Treads destroyed. 05932_ Field Propulsion Drive destroyed. 05932_ Door malfunctions. 05933_ The unstable cave ceiling collapses. [Achievement: I Think I Know What's Going On] Map ----- +----------------------------------------------------+ | | | | | ?????????????????????????????????????????????????? | | ?????????????????????????????????????????????????? | | ?????????????????????????????????????????????????? | | ??###???????????????###?????###??????????????????? | | """ #??????########## ####### ##############?????? | | "!" #?????##""# # ^ #?????? | | " " #????##"""" # ^ #?????? | | #????#" # ###########+########?????? | | #????# # #?????#### ##???????????? | | # ###????#"" "" + #?????#""" !#???????????? | | #+###?????# [ # # #?????#""X !#???????????? | | ############### #?????#"" !#???????????? | | # ####+###+####??#!! X "#???????????? | | # """"" # #??#!!"""##???????????? | | # """"" # #??#######????????????? | | # """"" # #?????????????????????? | | / # g #?????????????????????? | | # # #?????????????????????? | | ^ #########+## #####?????????????????? | | ######## ## # #?????????????????? | | ####### #?????????????????? | | ####### ##??##????????????? | | g d ### ##???????????? | | g @ ##??????????? | | ##+#################### ##?????????? | | #????# ##????????? | | #????# # = ##""#????? | | #????# / #""#????? | | #????# # #""###??? | | #????# ]]] # ""# ###? | | #????# ## bd # "" ## | | #????# !!! ### [ *""! | | /################ ### =pd == "" | | # #####+####"""/%% "" | | # #?" %[!%[ p [ | | / #?"] %%= = | | # ###! %= % ! * | | ### + =!%! [ %!%%/% = % | | #?# ####*" !% # = ! " | | #?###############???## # %! = "" * [[ | | #?????????????######## #%=%= !""=/%%## | | #?????????????# ## ##"=% # # ""#####? | | #?????????????# # ! #######""#????? | | ??????????????# # #?????#""#????? | | ??????????????# + #??????""?????? | | ??????????????######## #?????????????? | | ?????????????????????# ##+##"####????????????? | | ?????????????????????## ## #????????????? | +----------------------------------------------------+ Best States ------------- Heat Dissipation 67 Energy Generation 30 Energy Capacity 465 Matter Stores 300 Matter Capacity 300 Sight Range 18 Robot Scan Range 16 Terrain Scan Density 10 Armor Coverage 600 Point Defense Rating 80 Weapon Cycling 15 Evasion (%) 71 Targeting Accuracy 6 Recoil Reduction 2 Offensive Hacking 10 Item Schematics ----------------- Arm. Huge Wheel | -5/Factory | Scanalyzed Robot Schematics ------------------ None Fabricated ------------ Armor Integrity Analyzer | x1 | -7/Factory | Preloaded Alien Tech Used ----------------- None Achievements -------------- A Powerful Ally? I Think I Know What's Going On No Explosion For You Challenges ------------ None Game ------ Seed TargetVisualSabre Manual? 0 Play Time 01:07:24 Cumulative 58.2 hours Start 2022.09.09 @ 19:51:53 End 2022.09.10 @ 17:32:10 Sessions 3 Manual Loads 0 Difficulty Rogue Special Mode None Game No. 63 Rogue 63 Adventurer 0 Explorer 0 Win Type - Total 0 Types 0/0/0/0/0/0/0/0/0 Lore% 51 Gallery% 39 Achievement% 33 Wizard Run 0 Options --------- ASCII 0 Keyboard 0 Movement Numpad Keybinds 0 Fullscreen 2 Font 18/SmallcapsGlow Map View 76x50 Tactical HUD 1 Map Filters NONE Filters NONE Steam 1 RUN: 8a3e4e35-dc0f-4da2-b710-0ff0fad5a5dd